bitfinex/quotes_ETHUSD_20241101
["timestamp","ask_amount","ask_price","bid_price","bid_amount"]
[1730431455768,0.0008,2519.5,2519.2,4.75578]
[1730431455769,0.0008,2519.5,2519.3,3.96934]
[1730431456571,0.76337019,2519.6,2519.3,3.96934]
[1730431456862,0.76337019,2519.6,2519.3,0.55]
[1730431458045,0.76337019,2519.6,2519.2,0.55]
[1730431458546,0.76337019,2519.6,2519.2,1.398915]
[1730431458863,3.32190077,2519.3,2518.7,0.82488705]
[1730431459066,3.32190077,2519.3,2518.0,0.8093]
[1730431459067,3.32190077,2519.0,2518.0,0.8093]
[1730431459252,7.29132077,2519.3,2518.6,3.97035]
[1730431459460,3.9696,2519.2,2518.6,3.97035]
[1730431459650,0.8123,2519.1,2518.6,3.97035]
[1730431460492,4.78203,2519.1,2518.6,0.55]
[1730431460793,0.8134,2519.0,2518.6,3.97044]
[1730431461157,0.8134,2519.0,2518.5,0.55]
[1730431461359,0.7526,2518.9,2518.5,0.55]
[1730431461766,0.7526,2518.9,2518.3,3.0]
[1730431461970,0.7526,2518.8,2518.2,3.97096]
[1730431462574,0.7526,2518.8,2518.2,7.94194]
[1730431462755,3.97025,2518.8,2518.2,3.97096]
[1730431462967,0.7598,2518.7,2518.3,0.55]
[1730431463758,4.73012,2518.7,2518.3,0.55]
[1730431464674,3.32190077,2518.6,2518.3,0.55]
[1730431465574,4.11710077,2518.4,2518.1,0.55]
[1730431465781,3.32190077,2518.1,2517.8,4.68714138]
[1730431466076,0.7952,2518.0,2517.8,4.68714138]
[1730431466599,0.7952,2518.0,2517.8,4.68712138]
[1730431466756,3.32190077,2517.9,2517.8,0.71552138]
[1730431466956,0.7952,2518.0,2517.8,0.71552138]
[1730431467388,0.7952,2518.0,2517.7,3.97181]
[1730431467592,0.7952,2518.0,2517.6,3.97197]
[1730431467884,0.8283,2517.7,2517.2,3.97259]
[1730431468080,3.32190077,2517.5,2517.2,3.97259]
[1730431468397,0.8283,2517.7,2517.4,3.97235]
[1730431468398,4.15020077,2517.7,2517.4,3.97235]
[1730431468601,4.15020077,2517.7,2517.6,3.97203]
[1730431468898,4.15020077,2517.7,2517.4,3.97235]
[1730431468899,0.8283,2517.7,2517.4,3.97222]
[1730431469063,0.8283,2517.7,2517.5,0.4369479]
[1730431469253,4.15020077,2517.7,2517.5,0.4369479]
[1730431469458,4.15020077,2517.7,2517.4,3.97222]
[1730431470296,4.15020077,2517.7,2517.4,7.94447]
[1730431470661,4.15020077,2517.7,2517.4,3.97222]
[1730431471485,4.15020077,2517.7,2517.5,4.52214]
[1730431472195,4.15020077,2517.7,2517.5,0.55]
[1730431472503,4.15020077,2517.7,2517.5,1.002222]
[1730431475208,3.97114,2518.2,2517.9,0.55]
[1730431475209,0.7874,2518.0,2517.9,0.55]
[1730431477076,4.10930077,2518.0,2517.7,4.52187]
[1730431477578,4.10930077,2518.0,2517.7,0.55]
[1730431477908,4.10930077,2518.0,2517.5,3.97211]
[1730431478202,4.10930077,2518.0,2517.6,0.55]
[1730431480201,4.10930077,2518.0,2517.6,4.52203]
[1730431483682,3.32190077,2518.0,2517.6,0.55]
[1730431484053,0.7915,2517.6,2517.5,0.55]
[1730431484311,0.7915,2517.6,2517.5,4.52219]
[1730431485081,0.7915,2517.6,2517.2,3.97255]
[1730431485282,0.7915,2517.6,2517.2,0.55]
[1730431485485,0.7915,2517.6,2517.4,3.97224]
[1730431487209,0.7915,2517.6,2517.5,3.97219]
[1730431487387,0.8124,2517.9,2517.6,3.97201]
[1730431489044,0.8124,2517.9,2517.5,3.97219]
[1730431489189,0.8124,2517.9,2517.6,3.97199]
[1730431489742,0.8124,2517.9,2517.6,3.97193]
[1730431491326,0.8124,2517.9,2517.4,9.23347]
[1730431491514,0.8124,2517.9,2517.6,3.97202]
[1730431494532,0.8124,2517.9,2517.5,0.55]
[1730431494894,0.8124,2517.9,2517.5,4.5221]
[1730431495090,0.8124,2517.9,2517.4,8.44504]
[1730431495313,0.8124,2517.9,2517.5,0.55]
[1730431495934,4.78407,2517.9,2517.3,4.52246]
[1730431496151,0.8124,2517.9,2517.3,1.529842]
[1730431496325,0.8124,2517.9,2517.5,0.55]
[1730431497359,4.78398,2517.9,2517.5,0.55]
[1730431497560,0.8124,2517.9,2517.5,0.55]
[1730431498342,4.78397,2517.9,2517.5,0.55]
[1730431498542,0.8124,2517.9,2517.5,0.55]
[1730431500524,7.29331077,2518.0,2517.5,0.55]
[1730431500525,1.48902367,2517.6,2517.5,0.55]
[1730431500726,2.28152367,2517.6,2517.5,0.55]
[1730431501141,2.28152367,2517.6,2517.5,4.52219]
[1730431501325,2.28152367,2517.6,2517.5,0.55]
[1730431501541,2.28152367,2517.6,2517.5,4.52219]
[1730431501758,2.28152367,2517.6,2517.5,0.55]
[1730431501961,2.28152367,2517.6,2517.4,0.55]
[1730431502270,2.28152367,2517.6,2517.4,4.52224]
[1730431502759,2.28152367,2517.6,2517.5,0.55]
[1730431502989,2.28152367,2517.6,2517.4,0.55]
[1730431503403,2.28152367,2517.6,2517.5,4.52219]
[1730431503757,2.28152367,2517.6,2517.5,0.55]
[1730431504269,2.28152367,2517.6,2517.5,5.371659]
[1730431504468,0.7925,2517.6,2517.5,5.371659]
[1730431504666,2.24102367,2517.8,2517.7,3.97187]
[1730431504973,2.24102367,2517.8,2517.7,4.52187]
[1730431505670,2.24102367,2517.8,2517.7,0.55]
[1730431510198,2.24102367,2517.8,2517.7,0.84603953]
[1730431510607,2.24102367,2517.8,2517.7,0.84615996]
[1730431511822,2.24102367,2517.8,2517.7,0.29615996]
[1730431514024,2.24102367,2517.8,2517.6,1.02908496]
[1730431514200,2.24102367,2517.8,2517.7,0.29635646]
[1730431516192,2.24102367,2517.8,2517.6,1.02908496]
[1730431516380,2.24102367,2517.8,2517.7,0.29631668]
[1730431521314,2.24102367,2517.8,2517.6,5.00101683]
[1730431521495,2.24102367,2517.8,2517.6,3.97202]
[1730431521830,2.24102367,2517.8,2517.7,0.29631099]
[1730431523993,2.24102367,2517.8,2517.7,1.32579307]
[1730431524835,2.24102367,2517.8,2517.7,1.02948208]
[1730431525008,2.24102367,2517.8,2517.7,1.32592672]
[1730431527153,2.24102367,2517.8,2517.7,1.3264132]
[1730431527350,2.24102367,2517.8,2517.7,1.02996856]
[1730431527651,2.24102367,2517.8,2517.7,1.32655725]
[1730431528749,2.24102367,2517.8,2517.7,1.62314071]
[1730431529855,2.24102367,2517.8,2517.7,1.32655202]
[1730431531957,2.24102367,2517.8,2517.7,1.32626888]
[1730431532452,2.24102367,2517.8,2517.7,1.32616783]
[1730431532833,2.24102367,2517.8,2517.7,1.87616783]
[1730431533058,1.48902367,2517.8,2517.7,1.87616783]
[1730431534543,0.7746,2517.9,2517.7,1.87616783]
[1730431534886,0.7746,2517.9,2517.8,0.29648241]
[1730431535742,0.7746,2517.9,2517.7,1.57930454]
[1730431535943,0.7746,2517.9,2517.8,0.29638228]
[1730431539444,0.7746,2517.9,2517.8,0.29636768]
[1730431541175,0.7746,2517.9,2517.5,0.82488705]
[1730431541349,1.48902367,2517.7,2517.6,1.32567943]
[1730431541764,1.48902367,2517.7,2517.6,5.29770943]
[1730431541976,1.48902367,2517.7,2517.6,1.32567943]
[1730431542793,1.48902367,2517.7,2517.6,1.02929738]
[1730431542954,1.48902367,2517.7,2517.6,1.32565357]
[1730431544229,2.26362367,2517.9,2517.6,1.32565357]
[1730431544394,2.26362367,2517.9,2517.7,1.02927736]
[1730431544589,2.26362367,2517.9,2517.6,0.29635619]
[1730431545092,2.26362367,2517.9,2517.7,0.29635619]
[1730431545387,2.26362367,2517.9,2517.8,0.29635619]
[1730431547293,2.26362367,2517.9,2517.8,0.2963396]
[1730431548796,2.26362367,2517.9,2517.8,0.29624958]
[1730431549398,1.48902367,2518.1,2517.8,6.2029766]
[1730431549572,1.48902367,2518.3,2518.1,3.97124]
[1730431549770,1.48902367,2518.3,2518.2,3.97109]
[1730431550011,1.48902367,2518.3,2518.1,7.94239]
[1730431550211,1.48902367,2518.3,2518.2,0.29604989]
[1730431550413,1.48902367,2518.3,2518.2,0.59210337]
[1730431550709,1.48902367,2518.3,2518.2,0.29605348]
[1730431550869,1.48902367,2518.3,2518.2,0.72277383]
[1730431551070,1.48902367,2518.3,2518.2,0.29605348]
[1730431553184,2.24692367,2518.3,2518.2,0.29605348]
[1730431556720,6.21785367,2518.3,2518.2,0.29605348]
[1730431558115,6.21785367,2518.3,2517.9,0.84553758]
[1730431558416,1.48902367,2518.0,2517.9,0.84553758]
[1730431558721,1.48902367,2518.2,2517.9,2.01243045]
[1730431558882,1.48902367,2518.0,2517.9,5.68843287]
[1730431559087,1.48902367,2518.4,2518.1,3.97117]
[1730431559513,1.48902367,2518.4,2518.1,4.26666623]
[1730431559827,1.48902367,2518.4,2518.2,0.55]
[1730431560821,1.48902367,2518.4,2518.2,4.52108]
[1730431561032,1.48902367,2518.4,2518.2,5.446853]
[1730431561326,1.48902367,2518.4,2518.2,1.475773]
[1730431561511,1.48902367,2518.4,2518.2,0.55]
[1730431563218,1.48902367,2518.4,2518.1,3.97113]
[1730431563219,1.48902367,2518.4,2518.1,0.55]
[1730431563540,4.75545,2518.6,2518.1,0.55]
[1730431563541,1.48902367,2518.2,2518.1,0.55]
[1730431563712,1.48902367,2518.2,2518.1,4.52124]
[1730431564329,1.48902367,2518.2,2518.1,0.55]
[1730431565243,1.48902367,2518.2,2517.9,0.55]
[1730431565399,1.48902367,2518.0,2517.7,1.32168157]
[1730431565609,1.48902367,2517.8,2517.7,0.29544131]
[1730431565799,1.48902367,2517.8,2517.6,3.97194]
[1730431566027,1.48902367,2517.8,2517.6,4.26749737]
[1730431566930,1.48902367,2517.8,2517.7,0.55]
[1730431567350,1.48902367,2517.8,2517.4,4.79179]
[1730431567506,1.48902367,2517.5,2517.4,4.79179]
[1730431567700,1.48902367,2517.7,2517.4,6.11419828]
[1730431568015,1.48902367,2517.7,2517.4,5.93127453]
[1730431568607,1.48902367,2517.7,2517.5,0.55]
[1730431572240,1.48902367,2517.7,2517.5,4.52215]
[1730431572454,1.48902367,2517.7,2517.5,4.81776206]
[1730431573241,1.48902367,2517.7,2517.5,4.52215]
[1730431573566,1.48902367,2517.7,2517.5,0.55]
[1730431580687,1.48902367,2517.7,2517.5,4.52216]
[1730431581080,1.48902367,2517.7,2517.5,0.55]
[1730431581389,2.25542367,2517.6,2517.4,0.2955783]
[1730431581557,2.25542367,2517.6,2517.0,1.8225811]
[1730431581763,1.48902367,2517.2,2517.1,3.97276]
[1730431582083,1.48902367,2517.2,2517.0,4.47282]
[1730431582256,1.48902367,2517.2,2517.1,3.97282]
[1730431582456,2.27722367,2517.2,2517.0,0.5]
[1730431583093,2.50494604,2517.2,2517.0,0.5]
[1730431583254,3.97282,2517.1,2517.0,0.5]
[1730431585200,6.23514367,2517.1,2517.0,0.5]
[1730431585501,9.23514367,2517.1,2517.0,0.5]
[1730431588756,7.74612,2517.1,2517.0,0.5]
[1730431589000,9.0916736,2517.1,2517.0,0.5]
[1730431590267,0.7733,2517.1,2517.0,0.5]
[1730431590672,1.48902367,2517.2,2517.0,0.5]
[1730431591258,4.74161,2517.3,2517.0,0.5]
[1730431591458,1.48902367,2517.1,2517.0,0.5]
[1730431592899,2.25812367,2517.1,2517.0,0.5]
[1730431593110,6.85402304,2517.1,2517.0,0.5]
[1730431593964,2.25812367,2517.1,2517.0,0.5]
[1730431597108,1.48902367,2517.1,2517.0,0.5]
[1730431604887,2.25832367,2517.1,2517.0,0.5]
[1730431606887,6.23114367,2517.1,2517.0,0.5]
[1730431608652,1.48902367,2517.1,2517.0,0.5]
[1730431609624,2.28772367,2517.1,2517.0,0.5]
[1730431609833,9.88658704,2517.1,2517.0,0.5]
[1730431611660,11.37561071,2517.1,2517.0,0.5]
[1730431611902,9.88658704,2517.1,2517.0,0.5]
[1730431620280,11.39731071,2517.1,2517.0,0.5]
[1730431620484,3.97403,2516.4,2516.2,0.05959618]
[1730431620701,1.48902367,2516.3,2516.2,0.05959618]
[1730431623100,5.46310367,2516.3,2516.2,0.05959618]
[1730431624159,0.8302,2516.1,2515.3,5.56666705]
[1730431624511,1.48902367,2515.4,2515.3,8.71735]
[1730431624797,1.48902367,2515.6,2515.5,3.97531]
[1730431627101,1.48902367,2515.8,2515.7,3.97501]
[1730431628710,3.97369,2516.6,2516.1,0.7662]
[1730431628711,3.3313509,2516.5,2516.1,0.7662]
[1730431628909,3.3313509,2516.5,2516.1,4.74058]
[1730431629372,3.3313509,2516.5,2516.1,4.82006646]
[1730431629562,3.3313509,2516.7,2516.3,3.97403]
[1730431630001,3.3313509,2516.5,2516.1,4.7405]
[1730431630211,3.3313509,2516.5,2516.2,0.47405]
[1730431630364,3.3313509,2516.5,2516.2,4.44827]
[1730431633186,3.3313509,2516.5,2516.2,0.47405]
[1730431633394,3.3313509,2516.5,2516.2,4.44829]
[1730431636214,3.3313509,2516.5,2516.2,0.47405]
[1730431636424,3.3313509,2516.5,2516.2,4.44823]
[1730431636722,3.3313509,2516.5,2516.2,0.47405]
[1730431636931,3.3313509,2516.5,2516.1,4.74049]
[1730431637115,3.3313509,2516.2,2516.1,0.7662]
[1730431638646,3.3313509,2516.2,2515.9,3.97459]
[1730431639019,3.3313509,2516.2,2516.0,3.97454]
[1730431641246,3.3313509,2516.2,2516.0,3.97446]
[1730431641977,3.3313509,2516.2,2516.0,7.94893]
[1730431642153,3.3313509,2516.2,2516.0,7.94891]
[1730431644854,3.3313509,2516.2,2516.1,3.9744]
[1730431645011,3.3313509,2516.2,2516.0,3.97445]
[1730431647893,7.63879599,2516.2,2515.7,0.41501763]
[1730431648090,3.3313509,2515.8,2515.7,0.41501763]
[1730431648494,3.3313509,2515.8,2515.6,3.9751]
[1730431648656,3.3313509,2515.8,2515.6,7.9502]
[1730431649166,3.3313509,2515.8,2515.7,3.97503]
[1730431649371,3.3313509,2515.8,2515.3,0.8235]
[1730431649574,3.3313509,2515.5,2515.3,4.7991]
[1730431649788,3.3313509,2515.5,2515.2,3.97576]
[1730431649990,3.3313509,2515.5,2515.2,3.97573]
[1730431650379,3.3313509,2515.5,2515.3,3.97553]
[1730431651082,3.3313509,2515.7,2515.3,3.97553]
[1730431651253,3.3313509,2515.7,2515.5,3.97533]
[1730431653611,3.3313509,2515.7,2515.4,3.97547]
[1730431654413,3.3313509,2515.7,2515.5,3.97532]
[1730431654576,3.3313509,2515.7,2515.5,4.76472]
[1730431655674,3.3313509,2515.7,2515.5,0.7894]
[1730431659541,3.3313509,2515.7,2515.3,4.79741]
[1730431661030,3.3313509,2515.7,2515.3,4.79737]
[1730431662046,3.3313509,2515.7,2515.4,3.97544]
[1730431662209,3.3313509,2515.7,2515.5,3.97534]
[1730431662711,3.3313509,2515.7,2515.5,7.95068]
[1730431662910,3.3313509,2515.7,2515.5,3.97534]
[1730431663112,3.3313509,2515.7,2515.5,3.97524]
[1730431663530,3.97448,2516.1,2515.5,3.97524]
[1730431663531,3.3313509,2516.0,2515.7,3.97492]
[1730431663727,3.3313509,2516.0,2515.7,4.77312]
[1730431666432,0.7764,2515.9,2515.5,3.97531]
[1730431666728,3.3313509,2515.7,2515.5,3.97531]
[1730431667068,3.3313509,2515.7,2515.5,3.97525]
[1730431667619,3.3313509,2515.7,2515.6,3.97519]
[1730431668565,1.49116592,2515.8,2515.7,4.7709]
[1730431669534,1.49116592,2515.8,2515.6,8.50038]
[1730431670263,1.49116592,2515.8,2515.7,3.97503]
[1730431675566,1.49116592,2515.8,2515.6,3.97519]
[1730431675736,1.49116592,2515.8,2515.7,3.97503]
[1730431677033,1.49116592,2515.8,2515.7,4.851792]
[1730431679478,1.49116592,2515.8,2515.7,0.876762]
[1730431679705,1.49116592,2515.8,2515.6,3.97509]
[1730431680299,1.49116592,2515.8,2515.7,3.97503]
[1730431680806,1.49116592,2515.8,2515.6,3.97509]
[1730431680979,1.49116592,2515.8,2515.7,3.97503]
[1730431686110,1.49116592,2516.0,2515.9,3.97463]
[1730431692505,1.49116592,2516.0,2515.7,3.9749]
[1730431692694,1.49116592,2515.8,2515.7,4.27053217]
[1730431693075,1.49116592,2515.8,2515.7,3.9749]
[1730431696278,1.49116592,2515.8,2515.7,4.27040139]
[1730431696629,1.49116592,2516.0,2515.9,3.97472]
[1730431701941,1.49116592,2516.0,2515.8,4.27021382]
[1730431702110,1.49116592,2516.0,2515.8,3.97478]
[1730431702346,1.49116592,2516.0,2515.8,4.27022156]
[1730431704840,1.49116592,2516.0,2515.9,3.97472]
[1730431705544,1.49116592,2516.0,2515.9,4.77242]
[1730431706483,1.49116592,2516.0,2515.9,5.06798001]
[1730431706688,1.49116592,2516.0,2515.9,6.05475372]
[1730431707295,1.49116592,2516.0,2515.9,5.75919371]
[1730431707497,0.8113,2516.4,2516.1,3.9744]
[1730431707498,1.49116592,2516.2,2516.1,3.9744]
[1730431707786,1.49116592,2516.2,2516.0,3.97447]
[1730431707999,1.49116592,2516.2,2516.1,0.75553688]
[1730431708165,1.49116592,2516.2,2516.0,3.97447]
[1730431710468,1.49116592,2516.2,2515.9,5.75919371]
[1730431710665,1.49116592,2516.2,2516.1,3.9744]
[1730431711156,1.49116592,2516.2,2516.1,4.27012215]
[1730431711498,1.49116592,2516.4,2516.2,3.97424]
[1730431712059,1.48484794,2516.4,2516.2,3.97424]
[1730431712392,1.48484794,2516.4,2516.2,0.82445121]
[1730431712693,1.48484794,2516.4,2516.1,3.97429]
[1730431713807,2.26836592,2516.6,2516.4,3.97391]
[1730431713958,1.49116592,2516.6,2516.4,3.97391]
[1730431714296,1.49116592,2516.6,2516.3,0.29545952]
[1730431714465,1.49116592,2516.4,2516.3,0.58704766]
[1730431715067,1.49116592,2516.4,2516.3,0.88242689]
[1730431715294,1.49116592,2516.4,2516.3,0.88235477]
[1730431715659,1.49116592,2516.4,2516.3,0.58704766]
[1730431716265,1.49116592,2516.4,2516.3,4.56112766]
[1730431717577,1.49116592,2516.9,2516.7,3.97336]
[1730431717963,1.49116592,2516.9,2516.7,8.796425]
[1730431718162,1.49116592,2516.9,2516.8,3.97329]
[1730431718390,1.49116592,2516.9,2516.7,4.823065]
[1730431718763,1.49116592,2517.1,2516.8,3.97329]
[1730431721574,1.49116592,2517.1,2516.9,3.97312]
[1730431721779,1.49116592,2517.1,2516.9,4.9349285]
[1730431722284,1.49116592,2517.1,2517.0,3.97298]
[1730431724305,0.8163,2517.3,2517.0,3.97298]
[1730431724306,1.49116592,2517.3,2517.0,3.97298]
[1730431724517,1.49116592,2517.3,2517.2,3.97266]
[1730431724816,1.49116592,2517.3,2517.1,4.74632]
[1730431725022,1.49116592,2517.3,2517.2,0.474632]
[1730431726322,1.49116592,2517.3,2517.2,4.447292]
[1730431727119,1.49116592,2517.3,2517.2,0.474632]
[1730431727305,1.49116592,2517.3,2517.1,3.97272]
[1730431728025,1.49116592,2517.3,2517.1,7.94544]
[1730431728532,1.49116592,2517.3,2517.1,3.97272]
[1730431729002,1.49116592,2517.3,2517.1,7.94544]
[1730431729330,1.49116592,2517.3,2517.1,3.97272]
[1730431730192,1.49116592,2517.3,2517.1,7.94545]
[1730431730412,1.49116592,2517.3,2517.1,8.816425]
[1730431730722,1.49116592,2517.3,2517.1,4.843695]
[1730431730925,0.7691,2517.2,2516.9,3.973]
[1730431731104,0.7691,2517.2,2516.8,3.97327]
[1730431731105,1.49116592,2517.0,2516.8,3.97327]
[1730431731428,1.49116592,2516.9,2516.8,3.97327]
[1730431738528,2.29296592,2516.9,2516.8,3.97327]
[1730431740032,2.29296592,2516.9,2516.7,3.97337]
[1730431740033,2.29296592,2516.9,2516.7,3.97336]
[1730431741300,2.29296592,2516.9,2516.7,7.94672]
[1730431741501,2.29296592,2516.9,2516.7,3.97336]
[1730431741897,2.29296592,2516.9,2516.8,3.97329]
[1730431743219,2.29296592,2516.9,2516.7,3.97336]
[1730431743556,2.29296592,2516.9,2516.8,3.97329]
[1730431744036,2.29296592,2516.9,2516.7,3.97336]
[1730431744343,2.29296592,2516.9,2516.7,3.97335]
[1730431744915,2.29296592,2516.9,2516.5,3.9737]
[1730431745122,0.8104,2516.5,2516.4,3.97393]
[1730431745842,1.49116592,2516.6,2516.5,3.97377]
[1730431752050,1.49116592,2516.6,2516.4,3.97393]
[1730431752278,2.27806592,2516.6,2516.4,3.97393]
[1730431753322,2.27806592,2516.6,2516.4,7.94786]
[1730431754219,2.27806592,2516.6,2516.5,3.97377]
[1730431754723,2.27806592,2516.6,2516.4,3.97393]
[1730431755218,2.27806592,2516.6,2516.3,0.41487751]
[1730431755452,1.49116592,2516.4,2516.2,3.97422]
[1730431755656,0.764,2516.3,2516.2,3.97422]
[1730431756745,1.49116592,2516.4,2516.2,4.3892044]
[1730431756952,1.49116592,2516.4,2516.3,3.97408]
[1730431757855,1.49116592,2516.6,2516.4,3.97393]
[1730431758174,1.49116592,2516.6,2516.5,3.97377]
[1730431759150,1.49116592,2516.6,2516.4,4.453073]
[1730431760134,1.49116592,2516.6,2516.4,3.97393]
[1730431760987,1.49116592,2516.6,2516.4,7.94777]
[1730431761268,1.49116592,2516.6,2516.4,3.97384]
[1730431762143,1.49116592,2516.6,2516.4,7.94768]
[1730431762643,1.49116592,2516.6,2516.5,3.97377]
[1730431763353,1.49116592,2516.6,2516.5,4.846021]
[1730431771338,1.49116592,2516.8,2516.5,4.846021]
[1730431771543,1.49116592,2516.8,2516.6,3.97353]
[1730431773595,1.49116592,2516.8,2516.5,3.97377]
[1730431773799,1.49116592,2516.8,2516.5,3.97365]
[1730431774000,1.49116592,2516.8,2516.7,3.97345]
[1730431774203,1.49116592,2516.8,2516.6,3.9736]
[1730431774660,0.8284,2516.7,2516.4,3.97382]
[1730431774854,1.49116592,2516.6,2516.4,3.97382]
[1730431775571,1.49116592,2516.6,2516.3,1.02481655]
[1730431775767,1.49116592,2516.6,2516.5,3.97377]
[1730431776306,1.49116592,2516.6,2516.4,4.55618836]
[1730431776459,1.49116592,2516.6,2516.4,8.53002836]
[1730431776797,1.49116592,2516.6,2516.4,7.94764]
[1730431777343,1.49116592,2516.6,2516.4,3.9738]
[1730431777991,1.49116592,2516.6,2516.4,7.94763]
[1730431782070,1.49116592,2516.6,2516.5,3.97377]
[1730431782471,1.49116592,2516.6,2516.5,4.26913368]
[1730431782673,1.49116592,2516.6,2516.5,3.97377]
[1730431783478,1.49116592,2516.6,2516.4,7.94762]
[1730431784174,1.49116592,2516.6,2516.4,3.9738]
[1730431784494,1.49116592,2516.6,2516.4,7.94761]
[1730431785215,1.49116592,2516.6,2516.5,3.97377]
[1730431785523,1.49116592,2516.6,2516.5,4.26926458]
[1730431786773,1.49116592,2516.6,2516.5,4.26918864]
[1730431788120,1.49116592,2516.6,2516.5,0.29541864]
[1730431789419,1.49116592,2516.6,2516.5,4.26918864]
[1730431790489,0.8284,2516.7,2516.5,4.26918864]
[1730431790682,0.8284,2516.7,2516.5,3.97377]
[1730431794424,0.7725,2516.9,2516.6,4.26914654]
[1730431794720,0.7725,2516.9,2516.6,7.94722]
[1730431796023,0.7725,2516.9,2516.7,3.97345]
[1730431797032,0.7725,2516.9,2516.6,3.97361]
[1730431797229,0.7725,2516.9,2516.6,8.60234077]
[1730431797397,1.49116592,2516.8,2516.6,4.62873077]
[1730431797919,1.49116592,2516.8,2516.4,4.80138611]
[1730431798095,1.49116592,2516.6,2516.5,0.29553362]
[1730431798807,2.31206592,2516.6,2516.5,0.29553362]
[1730431799634,2.31206592,2516.6,2516.5,0.29561036]
[1730431800333,6.28567592,2516.6,2516.5,0.29561036]
[1730431800509,4.79757,2516.5,2516.4,0.82752611]
[1730431803496,0.8238,2516.5,2516.4,0.82752611]
[1730431804217,4.79757,2516.5,2516.4,0.82752611]
[1730431805931,0.8238,2516.5,2516.4,0.82752611]
[1730431806137,4.79757,2516.5,2516.4,0.82752611]
[1730431806325,5.90257401,2516.5,2516.4,0.82752611]
[1730431806534,1.49116592,2516.6,2516.4,0.82752611]
[1730431807701,1.49116592,2516.6,2516.2,4.73111]
[1730431808740,1.49116592,2516.4,2516.2,0.7569]
[1730431808906,1.49116592,2516.4,2516.0,4.75248]
[1730431809103,1.49116592,2516.4,2516.1,3.97436]
[1730431809913,1.49116592,2516.4,2516.2,3.97423]
[1730431810130,1.49116592,2516.4,2516.0,4.75248]
[1730431810131,1.49116592,2516.4,2516.1,3.9744]
[1730431810932,1.49116592,2516.4,2516.0,4.75245]
[1730431811138,1.49116592,2516.4,2516.0,5.31640787]
[1730431811342,1.49116592,2516.4,2516.0,9.70586755]
[1730431811717,1.49116592,2516.4,2516.1,3.97439]
[1730431813620,1.49116592,2516.4,2516.0,1.75696755]
[1730431813820,1.49116592,2516.4,2516.1,3.9743]
[1730431814315,1.49116592,2516.4,2516.2,3.97422]
[1730431819352,1.49116592,2516.4,2516.0,9.14182968]
[1730431819666,1.49116592,2516.4,2516.1,3.97434]
[1730431821156,1.49116592,2516.4,2516.0,5.16741968]
[1730431821350,1.49116592,2516.4,2516.2,3.97421]
[1730431822959,1.49116592,2516.4,2516.2,7.94836]
[1730431823167,1.49116592,2516.4,2516.2,3.97415]
[1730431823663,1.49116592,2516.4,2516.2,7.9483]
[1730431823830,1.49116592,2516.4,2516.2,3.97415]
[1730431825531,1.49116592,2516.4,2516.2,7.9483]
[1730431825730,1.49116592,2516.6,2516.3,3.97408]
[1730431826029,1.49116592,2516.6,2516.5,3.97377]
[1730431826437,1.49116592,2516.8,2516.6,3.97358]
[1730431826630,1.49116592,2517.0,2516.7,3.97345]
[1730431826850,1.49116592,2517.0,2516.8,0.474275]
[1730431827047,1.49116592,2517.0,2516.7,3.97345]
[1730431827271,1.49116592,2517.0,2516.8,3.97323]
[1730431828055,1.49116592,2517.0,2516.7,3.97345]
[1730431828281,2.29766592,2516.8,2516.3,4.80147611]
[1730431828451,2.29766592,2516.4,2516.3,0.29482439]
[1730431828767,2.29766592,2516.4,2516.1,3.97429]
[1730431829368,2.29766592,2516.4,2516.2,3.97423]
[1730431830077,2.29766592,2516.4,2516.1,3.97429]
[1730431830568,2.29766592,2516.4,2516.1,7.9486]
[1730431830982,2.29766592,2516.4,2516.2,3.97422]
[1730431831477,2.29766592,2516.4,2516.1,3.97429]
[1730431831774,2.29766592,2516.4,2516.1,7.94859]
[1730431832331,1.49116592,2516.6,2516.1,4.89676711]
[1730431832537,1.49116592,2516.6,2516.3,3.97399]
[1730431833790,1.49116592,2516.6,2516.2,4.80453]
[1730431834993,2.31136592,2516.4,2516.1,3.97433]
[1730431835194,2.31136592,2516.4,2516.1,7.94864]
[1730431835361,2.31136592,2516.4,2516.2,3.97424]
[1730431835561,5.46456592,2516.8,2516.2,3.97424]
[1730431835562,2.28946592,2516.6,2516.2,3.97424]
[1730431837061,2.28946592,2516.6,2516.2,0.91770285]
[1730431837398,1.49116592,2516.6,2516.3,8.71682]
[1730431837571,1.49116592,2516.6,2516.4,3.97392]
[1730431838265,1.49116592,2516.6,2516.3,4.74284]
[1730431838471,1.49116592,2516.6,2516.1,5.07226212]
[1730431838661,1.49116592,2516.6,2516.3,3.97407]
[1730431839390,1.49116592,2516.6,2516.3,7.94806]
[1730431839603,1.49116592,2516.6,2516.3,3.97398]
[1730431841590,0.8053,2516.5,2516.3,3.97398]
[1730431844489,0.8053,2516.5,2516.1,3.97432]
[1730431844695,1.49116592,2516.4,2516.2,3.97423]
[1730431846501,1.49116592,2516.6,2516.3,4.73668]
[1730431846705,1.49116592,2516.6,2516.3,3.97408]
[1730431847705,1.49116592,2516.8,2516.5,0.7626]
[1730431847908,1.49116592,2517.0,2516.6,3.97346]
[1730431848215,1.49116592,2517.0,2516.8,3.97327]
[1730431848579,1.49116592,2517.0,2516.8,3.97317]
[1730431848984,1.49116592,2517.0,2516.9,3.97314]
[1730431849216,1.49116592,2517.0,2516.8,4.80277]
[1730431849416,1.49116592,2517.0,2516.9,3.97314]
[1730431850199,1.49116592,2517.0,2516.8,3.97329]
[1730431851492,1.49116592,2517.0,2516.8,7.94648]
[1730431852294,5.46331592,2517.6,2517.0,0.55]
[1730431852295,1.49116592,2517.6,2517.0,0.55]
[1730431852638,2.31336592,2517.8,2517.5,3.97208]
[1730431853722,1.49116592,2517.6,2517.5,3.97208]
[1730431853922,1.49116592,2517.6,2517.5,4.8455]
[1730431858143,2.31336592,2517.8,2517.6,3.97193]
[1730431858640,1.49116592,2517.8,2517.6,3.97193]
[1730431859537,1.49116592,2517.8,2517.5,4.8455]
[1730431860747,1.49116592,2517.6,2517.5,4.84561]
[1730431861306,1.49116592,2517.6,2517.5,0.87342]
[1730431861605,1.49116592,2517.6,2517.5,3.97219]
[1730431862002,1.49116592,2517.6,2517.4,3.97221]
[1730431862215,1.49116592,2517.6,2517.5,3.97219]